bitfinex-derivatives/quotes_BTCF0:USTF0_20250814
["timestamp","ask_amount","ask_price","bid_price","bid_amount"]
[1755145906525,0.88864111,123390.0,123380.0,0.21318288]
[1755145907333,0.88864111,123390.0,123380.0,0.2008391]
[1755145907526,0.88864111,123390.0,123380.0,0.21318873]
[1755145908126,0.88764111,123390.0,123380.0,0.21318873]
[1755145908435,0.88964111,123390.0,123380.0,0.21518873]
[1755145908838,0.88764111,123390.0,123380.0,0.21418873]
[1755145909034,0.88864111,123390.0,123380.0,0.21418873]
[1755145909234,0.52784111,123390.0,123380.0,0.21418873]
[1755145911031,0.88864111,123390.0,123380.0,0.21318873]
[1755145911334,0.88764111,123390.0,123380.0,0.21318873]
[1755145911629,0.12978597,123390.0,123380.0,0.21318873]
[1755145911933,0.52684111,123390.0,123380.0,0.21318873]
[1755145912932,0.88764111,123390.0,123380.0,0.21318873]
[1755145913436,0.52684111,123390.0,123380.0,0.21318873]
[1755145913633,0.88764111,123390.0,123380.0,0.19920873]
[1755145913940,1.63584111,123390.0,123380.0,0.19920873]
[1755145915735,1.74584111,123390.0,123380.0,0.19924214]
[1755145916437,0.99764111,123390.0,123380.0,0.19924214]
[1755145916624,1.74580111,123390.0,123380.0,0.19924214]
[1755145917343,1.27500111,123390.0,123380.0,0.19924214]
[1755145917727,1.27500111,123390.0,123380.0,0.21414214]
[1755145917928,1.63580111,123390.0,123380.0,0.21414214]
[1755145919735,1.23874597,123390.0,123380.0,0.21414214]
[1755145919931,1.63580111,123390.0,123380.0,0.21414214]
[1755145920126,1.63580111,123390.0,123380.0,0.19924214]
[1755145920540,1.63576111,123390.0,123380.0,0.19924214]
[1755145921641,1.63576111,123390.0,123380.0,0.15598214]
[1755145922741,1.63676111,123390.0,123380.0,0.15698214]
[1755145923542,1.38592111,123390.0,123380.0,0.15698214]
[1755145923741,1.38592111,123390.0,123380.0,0.18932214]
[1755145924244,1.74672111,123390.0,123380.0,0.18932214]
[1755145924554,1.74572111,123390.0,123380.0,0.18932214]
[1755145924734,1.74672111,123390.0,123380.0,0.19032214]
[1755145928241,1.38592111,123390.0,123380.0,0.19032214]
[1755145928543,1.74672111,123390.0,123380.0,0.19032214]
[1755145928837,1.38592111,123390.0,123380.0,0.19032214]
[1755145929044,1.74672111,123390.0,123380.0,0.19032214]
[1755145929545,1.74672111,123390.0,123380.0,0.09540214]
[1755145929741,1.74664111,123390.0,123380.0,0.11983214]
[1755145929944,1.74664111,123390.0,123380.0,0.11984305]
[1755145930339,1.7466234,123390.0,123380.0,0.11984305]
[1755145932450,1.7465834,123390.0,123380.0,0.11984305]
[1755145933143,1.3857434,123390.0,123380.0,0.19968305]
[1755145933350,1.7465434,123390.0,123380.0,0.21458305]
[1755145933646,1.3857434,123390.0,123380.0,0.21458305]
[1755145934056,1.34948826,123390.0,123380.0,0.21458305]
[1755145934243,1.3857434,123390.0,123380.0,0.21458305]
[1755145934650,0.6378234,123390.0,123380.0,0.21458305]
[1755145934842,1.7465034,123390.0,123380.0,0.21458305]
[1755145935349,1.7465034,123390.0,123380.0,0.19968305]
[1755145935645,1.7465034,123390.0,123380.0,0.11984305]
[1755145935849,1.7465034,123390.0,123380.0,0.12002264]
[1755145936048,1.7465034,123390.0,123380.0,0.03900354]
[1755145936350,1.80460294,123390.0,123380.0,0.002]
[1755145938151,1.80460294,123390.0,123370.0,0.0810202]
[1755145938152,0.1041592,123380.0,123370.0,0.0810202]
[1755145938452,0.9948399,123380.0,123370.0,0.0810202]
[1755145939044,0.0810259,123370.0,123360.0,0.348547]
[1755145939349,1.3818866,123370.0,123360.0,0.36110876]
[1755145939549,1.3818866,123370.0,123360.0,0.28007906]
[1755145939851,0.98483146,123370.0,123360.0,0.28007906]
[1755145940054,1.3818866,123370.0,123360.0,0.28007906]
[1755145940351,0.9948466,123370.0,123360.0,0.11802086]
[1755145940649,1.7436866,123370.0,123360.0,0.02643]
[1755145941049,0.9958466,123370.0,123360.0,0.002]
[1755145941255,1.7436466,123370.0,123360.0,0.002]
[1755145941751,1.7446466,123370.0,123360.0,0.02643]
[1755145942153,1.34759146,123370.0,123360.0,0.02643]
[1755145942354,1.7446466,123370.0,123360.0,0.02643]
[1755145942555,0.9968466,123370.0,123360.0,0.02643]
[1755145942848,1.7446866,123370.0,123360.0,0.002]
[1755145944152,1.34763146,123370.0,123360.0,0.002]
[1755145944347,1.34763146,123370.0,123360.0,0.02584]
[1755145944656,1.7446866,123370.0,123360.0,0.02584]
[1755145944953,1.34763146,123370.0,123360.0,0.02584]
[1755145945158,1.7446866,123370.0,123360.0,0.02584]
[1755145945364,1.7446866,123370.0,123360.0,0.002]
[1755145946454,1.7446866,123370.0,123360.0,0.02584]
[1755145946949,1.7446866,123370.0,123360.0,0.002]
[1755145947351,0.9968466,123370.0,123360.0,0.002]
[1755145947556,1.7446466,123370.0,123360.0,0.002]
[1755145949254,0.9968466,123370.0,123360.0,0.002]
[1755145949459,0.0810389,123350.0,123340.0,0.26697]
[1755145949658,1.3814796,123350.0,123340.0,0.29933]
[1755145949964,1.3814796,123350.0,123340.0,0.36075]
[1755145950365,1.7422796,123350.0,123340.0,0.10373]
[1755145950558,1.7422796,123350.0,123340.0,0.07137]
[1755145950756,1.7432796,123350.0,123340.0,0.004]
[1755145950961,1.7432796,123350.0,123340.0,0.02784]
[1755145950962,0.9954796,123350.0,123340.0,0.02784]
[1755145951157,1.7442796,123350.0,123340.0,0.02984]
[1755145951562,0.9964796,123350.0,123340.0,0.02984]
[1755145951962,1.7444796,123350.0,123340.0,0.006]
[1755145952562,0.9964796,123350.0,123340.0,0.006]
[1755145952761,1.7444796,123350.0,123340.0,0.006]
[1755145953166,1.80257914,123350.0,123340.0,0.006]
[1755145953659,1.05457914,123350.0,123340.0,0.006]
[1755145953857,1.80273914,123350.0,123340.0,0.006]
[1755145954469,1.7446396,123350.0,123340.0,0.006]
[1755145954865,1.7446396,123350.0,123340.0,0.02984]
[1755145956769,1.7446396,123350.0,123340.0,0.006]
[1755145957276,0.59942446,123350.0,123340.0,0.07737]
[1755145957572,1.7443996,123350.0,123340.0,0.2046651]
[1755145959671,0.9964796,123350.0,123340.0,0.2046651]
[1755145959874,1.7444396,123350.0,123340.0,0.2046651]
[1755145962574,0.9964796,123350.0,123340.0,0.2046651]
[1755145962971,1.7444396,123350.0,123340.0,0.2046651]
[1755145963676,1.7444396,123350.0,123340.0,0.2046653]
[1755145964577,0.9964796,123350.0,123340.0,0.2046653]
[1755145964778,1.7444396,123350.0,123340.0,0.1907753]
[1755145964977,1.7444396,123350.0,123340.0,0.10973]
[1755145965183,1.34738446,123350.0,123340.0,0.1907753]
[1755145965372,1.7444396,123350.0,123340.0,0.1907753]
[1755145965983,1.7444396,123350.0,123340.0,0.2046653]
[1755145966200,1.7444396,123350.0,123340.0,0.2036653]
[1755145966375,1.7444396,123350.0,123340.0,0.2006653]
[1755145966779,1.7444396,123350.0,123340.0,0.1224653]
[1755145966990,1.7444396,123350.0,123340.0,0.02684]
[1755145967171,1.7444396,123350.0,123340.0,0.03951639]
[1755145968282,1.7434396,123350.0,123340.0,0.03951639]
[1755145969385,1.80153914,123350.0,123340.0,0.03951639]
[1755145970883,1.80153914,123350.0,123320.0,0.3607914]
[1755145970884,0.103812,123330.0,123320.0,0.3607914]
[1755145971080,1.6324527,123330.0,123320.0,0.37346834]
[1755145971582,1.69710533,123330.0,123320.0,0.37346834]
[1755145972076,1.69710533,123330.0,123320.0,0.37646834]
[1755145972281,1.69810533,123330.0,123320.0,0.37646834]
[1755145973183,1.69810533,123330.0,123320.0,0.38046834]
[1755145973184,1.69910533,123330.0,123320.0,0.38046834]
[1755145974190,1.71662309,123330.0,123320.0,0.38046834]
[1755145974387,1.71662309,123330.0,123320.0,0.36657834]
[1755145974686,1.71662309,123330.0,123320.0,0.38108841]
[1755145975887,1.35582309,123330.0,123320.0,0.38108841]
[1755145976182,0.95876795,123330.0,123320.0,0.38108841]
[1755145976877,0.87771595,123330.0,123320.0,0.38108841]
[1755145977189,1.35582309,123330.0,123320.0,0.38108841]
[1755145977584,0.95876795,123330.0,123320.0,0.38108841]
[1755145977889,1.35582309,123330.0,123320.0,0.38108841]
[1755145979085,0.95876795,123330.0,123320.0,0.38108841]
[1755145979285,1.35582309,123330.0,123320.0,0.38108841]
[1755145980087,1.71662309,123330.0,123320.0,0.38108841]
[1755145980284,0.96423995,123330.0,123320.0,0.38108841]
[1755145980487,0.13526795,123330.0,123320.0,0.38108841]
[1755145980790,0.12541795,123330.0,123320.0,1.12626654]
[1755145981194,0.12541795,123330.0,123320.0,2.03636254]
[1755145983793,0.12541795,123330.0,123320.0,1.28844254]
[1755145983996,0.12541795,123330.0,123320.0,2.03636254]
[1755145984692,0.10790019,123330.0,123320.0,1.87418654]
[1755145984994,0.04324756,123330.0,123320.0,2.03632254]
[1755145985500,0.04324756,123330.0,123320.0,1.6392674]
[1755145986699,0.04324756,123330.0,123320.0,1.87414654]
[1755145987789,0.04324756,123330.0,123320.0,1.4770914]
[1755145988098,0.05619756,123330.0,123320.0,1.4770914]
[1755145988398,0.04324756,123330.0,123320.0,1.4770914]
[1755145988900,0.04324756,123330.0,123320.0,1.47716145]
[1755145989202,0.1089959,123330.0,123320.0,1.47716145]
[1755145990002,0.0905739,123330.0,123320.0,1.47712145]
[1755145990201,0.0905739,123330.0,123320.0,1.12633659]
[1755145990497,0.0905739,123330.0,123320.0,1.47712145]
[1755145991401,0.0905739,123330.0,123320.0,1.4895738]
[1755145992201,0.0905739,123330.0,123320.0,1.4895338]
[1755145993802,0.0905739,123330.0,123320.0,0.7417338]
[1755145994005,0.0905739,123330.0,123320.0,1.4895338]
[1755145994204,0.49747904,123330.0,123320.0,1.4895338]
[1755145994394,0.1944259,123330.0,123320.0,1.4895338]
[1755145994697,0.59148104,123330.0,123320.0,1.4895338]
[1755145994999,0.59148104,123330.0,123320.0,1.1287338]
[1755145995801,0.1944259,123330.0,123320.0,1.1287338]
[1755145995991,0.59148104,123330.0,123320.0,1.1287338]
[1755145997104,0.59148104,123330.0,123320.0,0.3809338]
[1755145997597,0.59148104,123330.0,123320.0,1.1287338]
[1755145997899,0.59148104,123330.0,123320.0,1.1142238]
[1755145998099,0.59148104,123330.0,123320.0,1.1287338]
[1755145999108,0.95228104,123330.0,123320.0,1.1287338]
[1755145999413,0.59148104,123330.0,123320.0,1.14141031]
[1755145999996,0.59148104,123330.0,123320.0,0.39361031]
[1755146000201,0.95228104,123330.0,123320.0,0.39361031]
[1755146000396,1.06018135,123330.0,123320.0,0.26508251]
[1755146000604,1.06018135,123330.0,123320.0,0.21815437]
[1755146000801,1.06018135,123330.0,123320.0,0.31392437]
[1755146003204,1.06018135,123330.0,123320.0,0.30147087]
[1755146003902,0.64032671,123330.0,123320.0,0.30147087]
[1755146004604,1.05934185,123330.0,123320.0,0.30147087]
[1755146006008,0.66228671,123330.0,123320.0,0.30147087]
[1755146006196,1.05934185,123330.0,123320.0,0.30147087]
[1755146006397,1.05934185,123330.0,123320.0,0.30147118]
[1755146006999,1.05934185,123330.0,123320.0,0.20570118]
[1755146007198,1.05934185,123330.0,123320.0,0.29856118]
[1755146007703,1.03651629,123330.0,123320.0,0.29856118]
[1755146007901,1.05879932,123330.0,123320.0,0.29856118]
[1755146008097,0.66174418,123330.0,123320.0,0.29856118]
[1755146008298,1.05879932,123330.0,123320.0,0.29856118]
[1755146009903,0.66174418,123330.0,123320.0,0.28474118]
[1755146010110,1.05879932,123330.0,123320.0,0.28474118]
[1755146010410,1.05879932,123330.0,123320.0,0.29856118]
[1755146011611,1.05879932,123330.0,123320.0,0.29861118]
[1755146011808,1.81143932,123330.0,123320.0,0.29861118]
[1755146012506,1.81143932,123330.0,123320.0,0.10080338]
[1755146012812,1.81115932,123330.0,123320.0,0.10080338]
[1755146013307,1.05879932,123330.0,123320.0,0.10080338]
[1755146013510,1.81119932,123330.0,123320.0,0.10080338]
[1755146013805,1.81119932,123330.0,123320.0,0.12469338]
[1755146014110,1.81119932,123330.0,123320.0,0.10080338]
[1755146015210,1.81119932,123330.0,123320.0,0.12469338]
[1755146015910,1.05879932,123330.0,123320.0,0.12469338]
[1755146016108,1.81063932,123330.0,123320.0,0.12469338]
[1755146018302,1.81063932,123330.0,123320.0,0.11201585]
[1755146018807,1.81063932,123330.0,123320.0,0.15821585]
[1755146019013,1.81063932,123330.0,123320.0,0.20487585]
[1755146019612,1.81063932,123330.0,123320.0,0.21755365]
[1755146019812,1.81063932,123330.0,123320.0,0.20487585]
[1755146020323,1.05879932,123330.0,123320.0,0.20487585]
[1755146020614,1.81043932,123330.0,123320.0,0.20487585]
[1755146020815,1.81043932,123330.0,123320.0,0.21755352]
[1755146021213,1.81043932,123330.0,123320.0,0.20487585]
[1755146021515,1.41338418,123330.0,123320.0,0.21755347]
[1755146021716,1.81043932,123330.0,123320.0,0.21755347]
[1755146022105,1.44963932,123330.0,123320.0,0.20487585]
[1755146022413,1.81043932,123330.0,123320.0,0.20487585]
[1755146025315,0.66174408,123330.0,123320.0,0.21755345]
[1755146025517,1.05879922,123330.0,123320.0,0.21755345]
[1755146025819,1.81023922,123330.0,123320.0,0.21755345]
[1755146026014,1.05879922,123330.0,123320.0,0.21755345]
[1755146026218,1.81015922,123330.0,123320.0,0.21755345]
[1755146029220,1.81015922,123330.0,123320.0,0.22992469]
[1755146029433,1.81015922,123330.0,123320.0,0.21610469]
[1755146029821,1.05879922,123330.0,123320.0,0.21610469]
[1755146030023,1.80983922,123330.0,123320.0,0.21610469]
[1755146030522,1.058844,123330.0,123320.0,0.21610469]
[1755146030720,1.809884,123330.0,123320.0,0.21610469]
[1755146034626,1.809884,123330.0,123320.0,0.18326469]
[1755146035519,1.809884,123330.0,123320.0,0.21704469]
[1755146035827,1.809884,123330.0,123320.0,0.20467345]
[1755146036218,1.809884,123330.0,123320.0,0.20467365]
[1755146037214,1.808844,123330.0,123320.0,0.20467365]
[1755146037722,1.80884409,123330.0,123320.0,0.20467365]
[1755146038221,1.80884409,123330.0,123320.0,0.21966365]
[1755146038622,1.86694363,123330.0,123320.0,0.21966365]
[1755146039022,1.80884409,123330.0,123320.0,0.21966365]
[1755146039325,1.05884409,123330.0,123320.0,0.10080685]
[1755146039526,1.80860409,123330.0,123320.0,0.10080685]
[1755146039725,1.80860409,123330.0,123320.0,0.12490685]
[1755146040326,1.46964849,123330.0,123320.0,0.12490685]
[1755146040526,1.86670363,123330.0,123320.0,0.12490685]
[1755146041422,1.86570363,123330.0,123320.0,0.12290685]
[1755146041628,1.11794363,123330.0,123320.0,0.12290685]
[1755146041830,1.86866363,123330.0,123320.0,0.11990685]
[1755146042528,1.11894363,123330.0,123320.0,0.11990685]
[1755146042730,1.86826363,123330.0,123320.0,0.11990685]
[1755146043230,1.86626363,123330.0,123320.0,0.11890685]
[1755146043430,1.86826363,123330.0,123320.0,0.11990685]
[1755146044131,1.86526363,123330.0,123320.0,0.11890685]
[1755146044334,1.86626363,123330.0,123320.0,0.16878685]
[1755146044524,1.86626363,123330.0,123320.0,0.19078685]
[1755146044725,1.11694363,123330.0,123320.0,0.21491685]
[1755146044925,1.86626363,123330.0,123320.0,0.21491685]
[1755146045332,1.46920849,123330.0,123320.0,0.21491685]
[1755146045532,1.86626363,123330.0,123320.0,0.21491685]
[1755146045939,1.80784409,123330.0,123320.0,0.21491685]
[1755146046127,1.86594363,123330.0,123320.0,0.21491685]
[1755146046533,1.86594363,123330.0,123320.0,0.21591685]
[1755146047234,1.86494363,123330.0,123320.0,0.21491685]
[1755146047437,1.86594363,123330.0,123320.0,0.21791685]
[1755146047833,1.86494363,123330.0,123320.0,0.21591685]
[1755146048033,1.86594363,123330.0,123320.0,0.21891685]
[1755146048933,1.80784409,123330.0,123320.0,0.21891685]
[1755146050435,1.05884409,123330.0,123320.0,0.20392685]
[1755146050637,2.30557665,123330.0,123320.0,0.17014685]
[1755146050935,1.55725665,123330.0,123320.0,0.17014685]
[1755146051328,2.30557665,123330.0,123320.0,0.13900685]
[1755146052535,2.30557665,123330.0,123320.0,0.12290685]
[1755146052738,1.80811373,123330.0,123320.0,0.12290685]
[1755146053536,1.86621327,123330.0,123320.0,0.12290685]
[1755146054630,1.80811373,123330.0,123320.0,0.12290685]
[1755146055743,0.66178895,123330.0,123320.0,0.12290685]
[1755146055939,1.80811373,123330.0,123320.0,0.20392685]
[1755146056237,1.80811373,123330.0,123320.0,0.21891685]
[1755146058638,1.67726056,123330.0,123320.0,0.19124905]
[1755146058839,0.97966992,123330.0,123320.0,0.21891719]
[1755146059043,0.58166514,123330.0,123320.0,0.23159464]
[1755146059241,0.97966992,123330.0,123320.0,0.23159464]
[1755146060850,0.97966992,123330.0,123320.0,0.21891719]
[1755146061246,1.72798992,123330.0,123320.0,0.20392719]
[1755146061743,0.97966992,123330.0,123320.0,0.17014719]
[1755146061942,1.72798992,123330.0,123320.0,0.13900719]
[1755146062250,1.72798992,123330.0,123320.0,0.12290719]
[1755146062451,1.72798992,123330.0,123320.0,0.12290696]
[1755146062843,1.03776946,123330.0,123320.0,0.12290696]
[1755146063039,1.78752946,123330.0,123320.0,0.12290696]
[1755146063748,1.78752946,123330.0,123320.0,0.09880696]
[1755146063950,1.72934992,123330.0,123320.0,0.09880696]
[1755146064346,0.97966992,123330.0,123320.0,0.12274696]
[1755146064648,1.72926992,123330.0,123320.0,0.12274696]
[1755146065048,1.78736946,123330.0,123320.0,0.12274696]
[1755146065853,1.72926992,123330.0,123320.0,0.12274696]
[1755146066453,0.97966992,123330.0,123320.0,0.12274696]
[1755146066746,1.72906992,123330.0,123320.0,0.12274696]
[1755146068251,1.72906992,123330.0,123320.0,0.12267691]
[1755146068452,1.72906992,123330.0,123320.0,0.12267692]
[1755146068858,0.97966992,123330.0,123320.0,0.12267692]
[1755146069056,1.72882992,123330.0,123320.0,0.12267692]
[1755146070451,1.72882992,123330.0,123320.0,0.12274697]
[1755146071253,1.72882992,123330.0,123320.0,0.11006905]
[1755146071449,1.72882992,123330.0,123320.0,0.12274697]
[1755146071861,1.78660946,123330.0,123320.0,0.12274697]
[1755146072862,2.28420324,123330.0,123320.0,0.12274697]
[1755146073248,2.28420324,123330.0,123320.0,0.09880697]
[1755146073751,2.28420324,123330.0,123320.0,0.08612905]
[1755146074455,2.2261037,123330.0,123320.0,0.00507005]
[1755146075157,2.2261037,123330.0,123320.0,0.0177484]
[1755146076358,2.28419763,123330.0,123320.0,0.0177484]
[1755146077153,1.53535763,123330.0,123320.0,0.0988072]
[1755146077353,2.28367763,123330.0,123320.0,0.0988072]
[1755146077554,2.28367763,123330.0,123320.0,0.1227472]
[1755146077761,2.28367763,123330.0,123320.0,0.11006885]
[1755146078249,1.38807907,123330.0,123320.0,0.11006885]
[1755146078453,2.28367763,123330.0,123320.0,0.11006885]
[1755146078658,1.78610625,123330.0,123320.0,0.11006885]
[1755146078858,1.78610625,123330.0,123320.0,0.12274719]
[1755146079361,0.97969232,123330.0,123320.0,0.12274719]
[1755146079659,1.72801232,123330.0,123320.0,0.12274719]
[1755146080563,1.72801232,123330.0,123320.0,0.04168839]
[1755146080763,1.72801232,123330.0,123320.0,0.01774839]
[1755146081760,1.78610625,123330.0,123320.0,0.01774839]
[1755146082861,1.78610625,123330.0,123320.0,0.00507005]
[1755146083655,1.77610625,123330.0,123320.0,0.00507005]
[1755146083867,1.88610625,123330.0,123320.0,0.00507005]
[1755146084364,1.4777195,123330.0,123320.0,0.01774856]
[1755146084558,2.2260395,123330.0,123320.0,0.01774856]
[1755146085368,1.4777195,123330.0,123320.0,0.01774856]
[1755146085559,2.2260395,123330.0,123320.0,0.01774856]
[1755146087462,2.28413343,123330.0,123320.0,0.01774856]
[1755146088258,0.1037389,123320.0,123310.0,0.02403628]
[1755146088463,1.38292116,123320.0,123310.0,0.02403628]
[1755146088857,2.13124116,123320.0,123310.0,0.02403628]
[1755146089959,2.18933509,123320.0,123310.0,0.02403628]
[1755146090164,2.19033509,123320.0,123310.0,0.02703628]
[1755146090667,1.44201509,123320.0,123310.0,0.02703628]
[1755146091267,2.19133509,123320.0,123310.0,0.02903628]
[1755146092163,1.39528073,123320.0,123310.0,0.08616188]
[1755146092467,1.73525408,123320.0,123310.0,0.20617188]
[1755146092655,0.98689408,123320.0,123310.0,0.20617188]
[1755146092858,1.73525408,123320.0,123310.0,0.20617188]
[1755146097867,1.04498801,123320.0,123310.0,0.20617188]
[1755146098063,1.79338801,123320.0,123310.0,0.20617188]
[1755146098263,1.44301519,123320.0,123310.0,0.19230188]
[1755146098463,2.19209519,123320.0,123310.0,0.14921188]
[1755146098664,1.84390461,123320.0,123310.0,0.12592188]
[1755146099473,1.78581068,123320.0,123310.0,0.12592188]
[1755146099878,1.78581068,123320.0,123310.0,0.02903628]
[1755146100065,1.84390461,123320.0,123310.0,0.02903628]
[1755146100662,2.29176839,123320.0,123310.0,0.02903628]
[1755146101773,2.29176839,123320.0,123310.0,0.00509628]
[1755146101977,2.29132839,123320.0,123310.0,0.00509628]
[1755146102676,2.29132839,123320.0,123310.0,0.02767628]
[1755146103078,1.84346461,123320.0,123310.0,0.02767628]
[1755146104078,1.78537068,123320.0,123310.0,0.02767628]
[1755146104669,2.13375132,123320.0,123310.0,0.02767628]
[1755146105080,2.19184525,123320.0,123310.0,0.02767628]
[1755146106775,2.19184525,123320.0,123310.0,0.10874238]
[1755146107578,2.11078625,123320.0,123310.0,0.10874238]
[1755146107771,1.79372354,123320.0,123310.0,0.18924238]
[1755146107972,1.71266404,123320.0,123310.0,0.20278238]
[1755146108171,0.96402404,123320.0,123310.0,0.20278238]
[1755146108377,1.71242404,123320.0,123310.0,0.20278238]
[1755146109066,1.31430183,123320.0,123310.0,0.20278238]
[1755146109268,1.71242404,123320.0,123310.0,0.20278238]
[1755146109975,0.3948579,123320.0,123310.0,0.20278238]
[1755146110180,0.45295183,123320.0,123310.0,0.20278238]
[1755146110481,0.3948579,123320.0,123310.0,0.20278238]
[1755146110679,0.0340579,123320.0,123310.0,0.20278238]
[1755146110877,0.0243279,123320.0,123310.0,0.21546046]
[1755146111083,0.0243279,123320.0,123310.0,0.20278238]
[1755146112295,0.0243279,123320.0,123310.0,0.56358238]
[1755146112486,0.0243279,123320.0,123310.0,0.57626036]
[1755146112786,1.5243279,123320.0,123310.0,0.57626036]
[1755146112983,1.5243279,123320.0,123310.0,0.58893783]
[1755146114077,1.5243279,123320.0,123310.0,0.57626036]
[1755146115083,1.5243279,123320.0,123310.0,0.56358238]
[1755146115489,1.5243279,123320.0,123310.0,0.58893722]
[1755146116187,1.5243279,123320.0,123310.0,0.22813722]
[1755146116385,1.5372779,123320.0,123310.0,0.22813722]
[1755146118393,1.5243279,123320.0,123310.0,0.22813722]
[1755146118785,1.5372779,123320.0,123310.0,0.58893722]
[1755146121805,1.5372779,123320.0,123310.0,0.22813722]
[1755146122200,1.5372779,123320.0,123310.0,0.58893722]
[1755146122904,1.5372779,123320.0,123310.0,0.22813722]
[1755146123698,1.5372779,123320.0,123310.0,0.22813724]
[1755146125001,1.5372779,123320.0,123310.0,0.97649724]
[1755146127806,1.5372779,123320.0,123310.0,0.97645724]
[1755146129102,1.5372779,123320.0,123310.0,1.33725724]
[1755146129708,1.5372779,123320.0,123310.0,1.33725704]
[1755146132211,1.5372779,123320.0,123310.0,0.22813704]
[1755146132510,1.5372779,123320.0,123310.0,0.58893704]
[1755146132712,1.5372779,123320.0,123310.0,0.22813696]
[1755146133010,1.98499031,123320.0,123310.0,1.42532937]
[1755146134115,1.98499031,123320.0,123310.0,1.4253294]
[1755146135107,1.98499031,123320.0,123310.0,0.6758494]
[1755146135309,1.98499031,123320.0,123310.0,1.4249294]
[1755146136015,1.98499031,123320.0,123310.0,0.6758494]
[1755146136216,1.98499031,123320.0,123310.0,1.4249294]
[1755146136415,1.98499031,123320.0,123310.0,0.6758494]
[1755146136616,1.98499031,123320.0,123310.0,1.4247294]
[1755146136922,1.5372779,123320.0,123310.0,1.4247294]
[1755146137118,1.98499031,123320.0,123310.0,1.4247294]
[1755146137512,1.98499031,123320.0,123310.0,0.6758494]
[1755146137818,1.98499031,123320.0,123310.0,1.4252494]
[1755146138417,1.98499031,123320.0,123310.0,0.6758494]
[1755146138612,1.98499031,123320.0,123310.0,1.4252094]
[1755146139409,1.98499031,123320.0,123310.0,0.97749699]
[1755146139610,1.98499031,123320.0,123310.0,1.4252094]
[1755146140819,1.5372779,123320.0,123310.0,1.4252094]
[1755146141119,1.98499031,123320.0,123310.0,1.4248894]
[1755146141618,1.5372779,123320.0,123310.0,1.4248894]
[1755146141917,1.98499031,123320.0,123310.0,1.4254094]
[1755146142618,1.98499031,123320.0,123310.0,0.6758494]
[1755146142819,1.98499031,123320.0,123310.0,1.4254094]
[1755146143016,1.98499031,123320.0,123310.0,1.4252894]
[1755146143210,1.5372779,123320.0,123310.0,1.4252894]
[1755146143422,1.98499031,123320.0,123310.0,1.4252894]
[1755146143610,1.98499031,123320.0,123310.0,1.4252494]
[1755146144718,1.98499031,123320.0,123310.0,1.42524941]
[1755146144921,1.98499031,123320.0,123310.0,0.977537]
[1755146145117,1.98499031,123320.0,123310.0,1.42524941]
[1755146147120,1.98499031,123320.0,123310.0,0.228137]
[1755146147426,1.98499031,123320.0,123310.0,1.42528941]
[1755146147721,1.98499031,123320.0,123310.0,1.42528955]
[1755146147923,1.5372779,123320.0,123310.0,0.67584955]
[1755146148131,1.5372779,123320.0,123310.0,1.42532955]
[1755146148320,0.49471031,123320.0,123310.0,0.67584955]
[1755146148514,0.49471031,123320.0,123310.0,1.42816955]
[1755146149216,0.0469979,123320.0,123310.0,1.42816955]
[1755146149417,0.49471031,123320.0,123310.0,1.42816955]
[1755146150227,0.0469979,123320.0,123310.0,1.42816955]
[1755146150418,0.06574834,123330.0,123320.0,0.1986412]
[1755146150610,0.02267,123330.0,123320.0,1.01983099]
[1755146150816,0.02267,123330.0,123320.0,1.77215099]
[1755146151824,0.02367,123330.0,123320.0,1.77315099]
[1755146152823,0.08904236,123330.0,123320.0,1.77315099]
[1755146153226,0.08904236,123330.0,123320.0,1.32543858]
[1755146153424,0.09004236,123330.0,123320.0,1.77515099]
[1755146154526,0.09004236,123330.0,123320.0,1.77815099]
[1755146156724,0.07709236,123330.0,123320.0,1.77815099]
[1755146157030,0.07609236,123330.0,123320.0,1.77415099]
[1755146157331,0.07709236,123330.0,123320.0,1.77515099]
[1755146157629,0.07709236,123330.0,123320.0,1.77315099]
[1755146158429,0.07709236,123330.0,123320.0,1.02083099]
[1755146158633,0.07709236,123330.0,123320.0,1.77223099]
[1755146159030,0.02772816,123330.0,123320.0,1.77223099]
[1755146159328,0.002,123330.0,123320.0,1.02083099]
[1755146159530,0.001,123330.0,123320.0,1.77359099]
[1755146159826,0.001,123330.0,123320.0,1.02183099]
[1755146160025,0.001,123330.0,123320.0,1.32587858]
[1755146160226,0.001,123330.0,123320.0,1.02183099]
[1755146160728,0.001,123330.0,123320.0,1.77347099]
[1755146162037,0.001,123330.0,123320.0,1.32575858]
[1755146162230,0.0655424,123330.0,123320.0,1.77347099]
[1755146162429,0.08808828,123330.0,123320.0,1.77347099]
[1755146165934,0.08808828,123330.0,123320.0,1.77295099]
[1755146166134,0.53580069,123330.0,123320.0,1.77295099]
[1755146166434,0.53580069,123330.0,123320.0,1.32551858]
[1755146166732,0.53580069,123330.0,123320.0,1.77323099]
[1755146166928,0.54875069,123330.0,123320.0,1.02183099]
[1755146167133,0.54875069,123330.0,123320.0,1.77323099]
[1755146167328,0.54875069,123330.0,123320.0,1.77322944]
[1755146167729,0.10103828,123330.0,123320.0,1.77322944]
[1755146167937,0.54875069,123330.0,123320.0,1.77322944]
[1755146170036,0.54875069,123330.0,123320.0,1.41242944]
[1755146171537,0.54875069,123330.0,123320.0,1.41174944]
[1755146171741,0.54875069,123330.0,123320.0,1.41170944]
[1755146177143,0.10103828,123330.0,123320.0,1.41170944]
[1755146177440,0.54875069,123330.0,123320.0,1.41170944]
[1755146178541,0.54875069,123330.0,123320.0,0.96399703]
[1755146178741,0.54875069,123330.0,123320.0,1.41170944]
[1755146179346,0.54875069,123330.0,123320.0,0.9639973]
[1755146179532,0.54875069,123330.0,123320.0,1.41014971]
[1755146179762,0.55375069,123330.0,123320.0,0.9624373]
[1755146179947,0.55375069,123330.0,123320.0,1.41014971]
[1755146180339,0.55175069,123330.0,123320.0,1.41014971]
[1755146180537,0.54975069,123330.0,123320.0,1.41114971]
[1755146180934,0.10203828,123330.0,123320.0,1.41114971]
[1755146181141,0.54975069,123330.0,123320.0,1.41114971]
[1755146181539,0.54975069,123330.0,123320.0,0.66102971]
[1755146181740,0.54975069,123330.0,123320.0,1.41122971]
[1755146181941,0.54975069,123330.0,123320.0,1.41110971]
[1755146184243,0.54975069,123330.0,123320.0,0.66102971]
[1755146184750,0.55925069,123330.0,123320.0,1.41066971]
[1755146185248,0.55925069,123330.0,123320.0,1.41066979]
[1755146186153,0.11153828,123330.0,123320.0,1.41058979]
[1755146186451,0.11153828,123330.0,123320.0,0.96287738]
[1755146186652,0.55925069,123330.0,123320.0,1.41058979]
[1755146187054,0.55925069,123330.0,123320.0,0.96287738]
[1755146187251,0.55925069,123330.0,123320.0,1.41094979]
[1755146188152,0.55925069,123330.0,123320.0,0.96323738]
[1755146188353,0.55925069,123330.0,123320.0,1.41094979]
[1755146188754,0.55925069,123330.0,123320.0,0.96323738]
[1755146188953,0.55925069,123330.0,123320.0,1.41094979]
[1755146189252,0.55925069,123330.0,123320.0,0.66102979]
[1755146189454,0.55925069,123330.0,123320.0,1.41062979]
[1755146190256,0.55925069,123330.0,123320.0,0.66102979]